bitfinex/quotes_SOLUSD_20250617
["timestamp","ask_amount","ask_price","bid_price","bid_amount"]
[1750145412203,5.25951949,152.83,152.8,0.28432314]
[1750145412421,5.25951949,152.84,152.8,5.54384263]
[1750145413210,5.25951949,152.84,152.8,12.08820506]
[1750145414009,32.29951949,152.85,152.8,12.08820506]
[1750145414432,5.25951949,152.84,152.8,6.82868557]
[1750145414610,5.25951949,152.84,152.8,12.08820506]
[1750145414930,5.25951949,152.83,152.79,11.80445031]
[1750145415310,5.25951949,152.83,152.79,0.14216157]
[1750145415518,5.25951949,152.82,152.78,19.51252229]
[1750145415718,5.25951949,152.82,152.78,14.2530028]
[1750145415922,5.25951949,152.82,152.78,19.51252229]
[1750145416132,5.25951949,152.84,152.79,5.40168106]
[1750145416311,11.8024565,152.84,152.79,11.94643719]
[1750145416519,5.25951949,152.83,152.79,11.94643719]
[1750145417011,11.8024565,152.84,152.79,11.94643719]
[1750145417211,32.29951949,152.85,152.81,5.25951949]
[1750145417839,32.29951949,152.85,152.8,5.54384263]
[1750145418143,5.25951949,152.83,152.79,11.80427562]
[1750145418308,27.04,152.85,152.82,5.25951949]
[1750145418712,32.29951949,152.85,152.81,11.80359383]
[1750145418930,27.04,152.85,152.81,11.80359383]
[1750145419207,5.25951949,152.85,152.81,11.80359383]
[1750145419839,32.27951949,152.86,152.82,5.54384263]
[1750145420009,5.9,152.87,152.84,0.28432314]
[1750145420216,5.9,152.87,152.83,6.82733161]
[1750145420509,11.15951949,152.87,152.83,6.82733161]
[1750145420715,11.15951949,152.87,152.81,0.28432314]
[1750145420716,5.25951949,152.84,152.81,0.28432314]
[1750145421308,12.44175627,152.87,152.81,0.28432314]
[1750145421512,5.25951949,152.85,152.81,5.54384263]
[1750145421712,5.25951949,152.85,152.81,0.28432314]
[1750145421914,5.25951949,152.85,152.81,5.54384263]
[1750145422338,5.25951949,152.85,152.81,12.0876239]
[1750145422940,5.25951949,152.85,152.81,6.82810441]
[1750145425740,5.25951949,152.86,152.82,5.25951949]
[1750145425938,59.56122918,152.88,152.84,5.54384263]
[1750145425939,5.25951949,152.88,152.84,5.54384263]
[1750145426113,5.25951949,152.87,152.84,0.28432314]
[1750145426834,5.25951949,152.86,152.84,0.28432314]
[1750145427749,5.25951949,152.86,152.84,6.82708427]
[1750145428043,5.25951949,152.86,152.83,6.54306127]
[1750145428440,5.25951949,152.87,152.83,11.80258076]
[1750145429022,32.31951949,152.88,152.85,6.54236179]
[1750145429221,12.44051303,152.9,152.86,5.54384263]
[1750145429222,11.15951949,152.9,152.86,5.54384263]
[1750145429438,38.19951949,152.9,152.86,5.54384263]
[1750145429637,11.15951949,152.9,152.86,5.54384263]
[1750145429838,32.94,152.9,152.86,5.54384263]
[1750145430140,12.44033802,152.9,152.86,0.28432314]
[1750145430315,5.25951949,152.87,152.84,6.54263286]
[1750145430640,5.25951949,152.86,152.84,6.54263286]
[1750145430954,5.25951949,152.86,152.83,6.82736038]
[1750145431320,5.25951949,152.85,152.82,6.54347213]
[1750145431520,5.25951949,152.84,152.82,6.54347213]
[1750145431720,5.25951949,152.83,152.82,0.14216157]
[1750145432129,5.25951949,152.83,152.82,0.28432314]
[1750145432651,5.25951949,152.84,152.82,0.28432314]
[1750145432951,5.25951949,152.85,152.83,0.14216157]
[1750145433132,32.29951949,152.87,152.83,6.68507091]
[1750145433334,5.25951949,152.86,152.83,6.68507091]
[1750145434822,5.25951949,152.86,152.83,0.14216157]
[1750145435027,5.25951949,152.85,152.83,0.14216157]
[1750145435961,5.25951949,152.86,152.83,6.68533862]
[1750145436134,5.25951949,152.86,152.83,0.14216157]
[1750145436339,5.25951949,152.84,152.82,6.68565841]
[1750145436655,33.56153215,152.87,152.82,6.68565841]
[1750145436831,5.25951949,152.85,152.82,6.68565841]
[1750145437029,27.02,152.87,152.83,0.14216157]
[1750145437227,5.25951949,152.86,152.83,0.14216157]
[1750145437727,5.25951949,152.85,152.83,0.14216157]
[1750145438835,27.02,152.87,152.83,6.68533133]
[1750145439061,5.25951949,152.86,152.83,6.68533133]
[1750145439365,5.25951949,152.85,152.83,6.68533133]
[1750145441036,5.25951949,152.85,152.83,0.14216157]
[1750145441361,5.25951949,152.85,152.82,6.68566778]
[1750145441574,5.25951949,152.83,152.8,7.885]
[1750145441877,5.25951949,152.83,152.8,14.42938463]
[1750145443558,5.25951949,152.85,152.81,0.28432314]
[1750145443769,5.25951949,152.86,152.82,5.25951949]
[1750145443945,5.25951949,152.85,152.81,5.54384263]
[1750145444142,33.56155626,152.87,152.81,5.54384263]
[1750145444459,5.25951949,152.86,152.81,5.54384263]
[1750145444766,5.25951949,152.86,152.81,24.19349149]
[1750145444934,5.25951949,152.86,152.82,6.54364611]
[1750145445140,5.25951949,152.86,152.83,0.28432314]
[1750145445337,32.54118715,152.88,152.83,0.28432314]
[1750145445338,5.25951949,152.85,152.83,0.28432314]
[1750145445658,5.25951949,152.84,152.81,6.54390554]
[1750145445855,5.25951949,152.83,152.81,0.28432314]
[1750145446053,5.25951949,152.83,152.8,14.42934561]
[1750145446568,31.90591045,152.87,152.81,0.28432314]
[1750145446868,5.25951949,152.86,152.81,5.54384263]
[1750145447042,5.25951949,152.86,152.82,6.54364611]
[1750145447667,5.25951949,152.85,152.82,6.54364611]
[1750145447835,5.25951949,152.86,152.83,0.28432314]
[1750145448156,37.42961691,152.88,152.83,0.28432314]
[1750145448354,5.25951949,152.86,152.83,0.28432314]
[1750145449043,5.25951949,152.85,152.83,0.28432314]
[1750145449445,5.25951949,152.84,152.81,0.28432314]
[1750145451448,6.54250606,152.85,152.81,0.28432314]
[1750145451647,11.80202555,152.85,152.81,0.28432314]
[1750145451949,33.56204732,152.86,152.81,12.0878477]
[1750145452143,5.25951949,152.85,152.81,5.54384263]
[1750145452452,5.25951949,152.82,152.8,7.885]
[1750145452656,5.25951949,152.81,152.77,6.54553716]
[1750145452852,5.25951949,152.81,152.76,14.70826804]
[1750145453063,5.25951949,152.8,152.76,14.70826804]
[1750145453654,5.25951949,152.8,152.77,0.28432314]
[1750145455256,5.25951949,152.81,152.77,6.83009428]
[1750145455764,38.82335008,152.82,152.77,12.08961377]
[1750145455962,38.82335008,152.82,152.77,6.83009428]
[1750145456171,38.82335008,152.82,152.77,12.08961377]
[1750145456482,5.25951949,152.81,152.77,11.58961377]
[1750145457976,27.02,152.82,152.77,11.58961377]
[1750145458159,5.25951949,152.81,152.77,11.58961377]
[1750145458361,5.25951949,152.81,152.78,0.28432314]
[1750145458683,32.27951949,152.82,152.78,0.28432314]
[1750145459775,5.25951949,152.82,152.78,0.28432314]
[1750145460160,5.25951949,152.81,152.78,6.82954416]
[1750145460556,5.25951949,152.81,152.78,0.28432314]
[1750145460760,5.25951949,152.81,152.76,0.28432314]
[1750145460761,5.25951949,152.79,152.76,0.28432314]
[1750145460976,5.25951949,152.79,152.73,25.19699811]
[1750145460977,5.25951949,152.77,152.73,25.19699811]
[1750145461297,5.25951949,152.75,152.72,14.84435706]
[1750145461588,5.25951949,152.73,152.68,7.7413]
[1750145461757,5.25951949,152.73,152.68,13.00081949]
[1750145461958,5.25951949,152.74,152.69,11.8087042]
[1750145462178,5.25951949,152.73,152.69,11.8087042]
[1750145462378,11.80708237,152.73,152.68,19.5503982]
[1750145462556,5.25951949,152.72,152.69,0.28432314]
[1750145462757,5.25951949,152.72,152.68,19.5503982]
[1750145462980,5.25951949,152.72,152.69,0.28432314]
[1750145463279,5.25951949,152.72,152.68,19.5503982]
[1750145463661,5.25951949,152.72,152.69,0.28432314]
[1750145464079,5.25951949,152.72,152.69,6.83349805]
[1750145464486,6.54724024,152.74,152.69,6.83349805]
[1750145464688,5.25951949,152.73,152.69,6.83349805]
[1750145465174,5.25951949,152.72,152.69,6.83349805]
[1750145465767,5.25951949,152.73,152.69,6.83349805]
[1750145466392,117.86011959,153.13,152.73,26.0]
[1750145466393,6.54364611,152.82,152.73,26.0]
[1750145466565,5.25951949,152.79,152.74,0.28432314]
[1750145466770,65.48364611,152.82,152.74,0.28432314]
[1750145466987,5.25951949,152.77,152.74,0.28432314]
[1750145467467,5.25951949,152.77,152.74,6.83099873]
[1750145469902,5.25951949,152.77,152.7,26.0]
[1750145470068,5.25951949,152.75,152.72,0.28432314]
[1750145470270,5.25951949,152.76,152.72,0.28432314]
[1750145470662,5.25951949,152.76,152.72,5.54384263]
[1750145471793,5.25951949,152.74,152.71,6.54820187]
[1750145471997,5.9,152.82,152.73,5.25951949]
[1750145472165,5.25951949,152.8,152.75,5.25951949]
[1750145472361,5.25951949,152.79,152.72,18.933972]
[1750145472584,31.9,152.82,152.72,18.933972]
[1750145472795,5.25951949,152.8,152.75,5.54384263]
[1750145473000,5.25951949,152.81,152.76,23.90916835]
[1750145473183,5.25951949,152.81,152.77,0.28432314]
[1750145473367,5.25951949,152.81,152.77,5.54384263]
[1750145473567,5.9,152.82,152.77,5.54384263]
[1750145473568,5.9,152.82,152.78,11.80487883]
[1750145473764,11.15951949,152.82,152.78,11.80487883]
[1750145474193,5.9,152.82,152.79,5.54384263]
[1750145474385,5.25951949,152.84,152.79,5.54384263]
[1750145474975,5.25951949,152.83,152.79,5.54384263]
[1750145475497,5.25951949,152.83,152.79,12.08858135]
[1750145476495,32.54206033,152.86,152.79,12.08858135]
[1750145476791,35.4782,152.87,152.81,5.54384263]
[1750145476792,6.26,152.87,152.81,5.54384263]
[1750145476972,5.25951949,152.86,152.82,5.25951949]
[1750145477366,5.25951949,152.85,152.81,0.28432314]
[1750145477571,5.25951949,152.83,152.79,0.28432314]
[1750145477784,12.8018179,152.87,152.79,5.54384263]
[1750145477995,5.25951949,152.83,152.79,5.54384263]
[1750145478886,5.25951949,152.83,152.79,12.08835747]
[1750145479276,5.25951949,152.83,152.79,6.82883798]
[1750145479478,6.26,152.87,152.79,23.19116535]
[1750145479774,6.26,152.87,152.82,5.25951949]
[1750145479986,5.25951949,152.86,152.82,5.25951949]
[1750145480701,5.25951949,152.86,152.81,11.65754263]
[1750145480878,5.25951949,152.85,152.81,12.94167998]
[1750145481399,11.51951949,152.87,152.83,0.28432314]
[1750145482102,5.25951949,152.86,152.83,0.28432314]
[1750145482288,6.26,152.87,152.83,0.28432314]
[1750145482484,5.25951949,152.86,152.83,0.28432314]
[1750145482827,11.51951949,152.87,152.83,0.28432314]
[1750145482991,11.51951949,152.87,152.84,6.54278984]
[1750145483583,6.26,152.87,152.84,6.54278984]
[1750145483794,6.26,152.87,152.83,5.54384263]
[1750145483795,6.26,152.87,152.83,6.82743882]
[1750145484101,5.25951949,152.84,152.81,0.28432314]
[1750145484275,5.25951949,152.83,152.81,0.28432314]
[1750145485295,5.25951949,152.85,152.81,6.82802581]
[1750145486303,12.80157379,152.87,152.81,6.82802581]
[1750145486479,5.25951949,152.85,152.81,6.82802581]
[1750145487205,12.80153587,152.87,152.81,6.82802581]
[1750145487410,5.25951949,152.85,152.81,6.82802581]
[1750145487704,5.25951949,152.84,152.81,6.82802581]
[1750145488209,12.80156388,152.87,152.81,12.0875453]
[1750145488406,5.25951949,152.85,152.81,12.0875453]
[1750145489206,11.51951949,152.87,152.83,5.54384263]
[1750145489418,11.51951949,152.87,152.83,0.28432314]
[1750145489789,5.25951949,152.86,152.83,0.28432314]
[1750145490503,5.25951949,152.84,152.81,6.54370267]
[1750145491690,5.25951949,152.85,152.82,0.28432314]
[1750145491909,6.26,152.87,152.82,24.19349149]
[1750145492107,11.51951949,152.87,152.82,24.19349149]
[1750145492401,6.26,152.87,152.84,0.28432314]
[1750145492606,11.51951949,152.87,152.84,0.28432314]
[1750145492907,10.74101062,152.91,152.85,5.25951949]
[1750145493121,10.74101062,152.91,152.86,24.19349149]
[1750145493429,16.00053011,152.91,152.87,5.25951949]
[1750145493928,10.74101062,152.91,152.88,6.54107796]
[1750145494080,10.74101062,152.91,152.9,5.25951949]
[1750145494287,5.25951949,152.94,152.9,0.28432314]
[1750145494588,5.25951949,152.93,152.9,0.28432314]
[1750145495015,5.25951949,152.94,152.9,0.28432314]
[1750145495192,60.53799367,152.96,152.9,6.82417884]
[1750145495384,5.25951949,152.94,152.9,6.82417884]
[1750145496294,5.25951949,152.93,152.9,0.28432314]
[1750145496906,5.25951949,152.94,152.9,6.8244833]
[1750145497219,60.53799367,152.96,152.9,6.8244833]
[1750145497401,5.25951949,152.94,152.9,12.08400279]
[1750145497581,5.25951949,152.95,152.91,5.25951949]
[1750145498189,5.25951949,152.95,152.9,6.8244833]
[1750145498190,5.25951949,152.96,152.92,11.79853014]
[1750145498693,11.51951949,152.97,152.93,0.28432314]
[1750145498912,5.25951949,152.96,152.93,0.28432314]
[1750145499212,11.51951949,152.97,152.93,0.28432314]
[1750145499414,5.25951949,152.96,152.93,0.28432314]
[1750145500594,5.25951949,152.94,152.91,0.28432314]
[1750145500796,5.25951949,152.93,152.91,0.28432314]
[1750145500992,12.79740351,152.97,152.91,0.28432314]
[1750145501190,5.25951949,152.98,152.94,5.25951949]
[1750145501392,5.25951949,153.0,152.96,5.25951949]
[1750145501706,6.26,153.02,152.96,5.25951949]
[1750145501707,5.25951949,153.01,152.97,0.28432314]
[1750145501909,5.25951949,153.01,152.97,5.54384263]
[1750145502885,6.26,153.02,152.97,5.54384263]
[1750145503206,5.25951949,153.01,152.97,0.28432314]
[1750145503888,5.25951949,153.01,152.97,5.54384263]
[1750145504117,5.25951949,153.01,152.97,0.28432314]
[1750145504491,11.79522912,153.01,152.97,5.54384263]
[1750145504686,6.53570963,153.01,152.97,5.54384263]
[1750145504919,6.53570963,153.01,152.97,0.28432314]
[1750145505224,11.79522912,153.01,152.97,0.28432314]
[1750145505518,6.53570963,153.01,152.97,5.54384263]
[1750145505694,11.79522912,153.01,152.97,5.54384263]
[1750145506210,6.53570963,153.01,152.96,5.25951949]
[1750145506389,5.25951949,152.98,152.94,18.933972]
[1750145506591,11.79657273,152.98,152.94,24.19349149]
[1750145507015,6.53705324,152.98,152.94,24.19349149]
[1750145507596,6.26,153.02,152.96,5.25951949]
[1750145507597,11.7954672,153.0,152.96,5.25951949]
[1750145507793,6.26,153.02,152.98,5.25951949]
[1750145508000,18.05477426,153.02,152.98,5.25951949]
[1750145508207,18.05477426,153.02,152.96,18.933972]
[1750145508208,12.79518525,153.02,152.96,18.933972]
[1750145508402,18.05470474,153.02,152.98,0.28432314]
[1750145509218,5.25951949,153.01,152.98,0.28432314]
[1750145509809,5.25951949,153.0,152.98,0.28432314]
[1750145510013,5.25951949,153.01,152.98,0.28432314]
[1750145511503,11.51951949,153.02,152.98,0.28432314]
[1750145511896,6.26,153.02,152.99,18.64964886]
[1750145512414,6.26,153.02,152.99,23.90916835]
[1750145512621,13.76045588,153.03,152.99,23.90916835]
[1750145512998,53.86,153.06,153.01,5.25951949]
[1750145512999,5.25951949,153.05,153.01,5.25951949]
[1750145513199,6.5336892,153.06,153.01,11.79495026]
[1750145513499,11.79320869,153.06,153.01,11.79495026]
[1750145513699,6.53312252,153.07,153.01,11.79495026]
[1750145513898,5.25951949,153.06,153.01,11.79495026]
[1750145514096,5.25951949,153.06,153.02,18.933972]
[1750145514296,5.25951949,153.06,153.02,24.19349149]
[1750145514718,5.25951949,153.07,153.03,5.25951949]
[1750145514910,11.69951949,153.08,153.03,5.25951949]
[1750145515326,6.44,153.08,153.03,11.79392413]
[1750145515636,5.25951949,153.07,153.03,5.25951949]
[1750145516612,12.97257286,153.08,153.03,5.25951949]
[1750145516937,12.97257286,153.08,153.03,11.79417323]
[1750145517137,6.44,153.08,153.04,24.19349149]
[1750145517445,18.23205455,153.08,153.04,18.933972]
[1750145518131,6.44,153.08,153.04,25.46816339]
[1750145518338,18.23215591,153.08,153.04,18.933972]
[1750145518645,5.25951949,153.07,153.04,18.933972]
[1750145518814,12.97263642,153.08,153.04,18.933972]
[1750145519240,5.25951949,153.07,153.04,18.933972]
[1750145520236,11.69951949,153.08,153.04,25.4681691]
[1750145520443,6.530399,153.13,153.07,5.25951949]
[1750145520627,5.25951949,153.12,153.07,5.25951949]
[1750145520829,5.25951949,153.11,153.07,5.25951949]
[1750145521650,6.44,153.14,153.09,11.79131503]
[1750145521816,6.44,153.14,153.09,6.53179554]
[1750145521817,5.25951949,153.13,153.09,6.53179554]
[1750145522022,6.44,153.14,153.1,18.933972]
[1750145522221,11.69951949,153.14,153.1,18.933972]
[1750145524054,5.25951949,153.13,153.1,18.933972]
[1750145525053,16.66914269,153.2,153.12,5.25951949]
[1750145525349,5.25951949,153.16,153.12,5.25951949]
[1750145525645,53.76,153.18,153.11,5.25951949]
[1750145525955,6.52895059,153.17,153.11,11.79054316]
[1750145526129,6.52895059,153.17,153.12,5.25951949]
[1750145526455,5.25951949,153.16,153.12,5.25951949]
[1750145526632,60.28837015,153.18,153.12,5.25951949]
[1750145526837,5.25951949,153.16,153.12,5.25951949]
[1750145527248,5.25951949,153.16,153.12,18.933972]
[1750145527556,5.25951949,153.16,153.12,24.19349149]
[1750145527760,5.25951949,153.16,153.12,30.72403682]
[1750145527925,5.25951949,153.16,153.12,25.46451733]
[1750145528126,32.52837015,153.18,153.12,30.72403682]
[1750145528325,5.25951949,153.16,153.12,30.72403682]
[1750145528632,32.52837015,153.18,153.12,25.46451733]
[1750145529033,32.52837015,153.18,153.12,30.72403682]
[1750145529360,5.25951949,153.16,153.12,30.72403682]
[1750145529527,5.25951949,153.13,153.07,29.26254681]
[1750145529727,5.25951949,153.1,153.07,18.64964886]
[1750145530157,5.25951949,153.1,153.08,0.28432314]
[1750145530541,5.25951949,153.1,153.07,18.64964886]
[1750145530854,5.25951949,153.1,153.08,0.28432314]
[1750145531048,5.25951949,153.1,153.08,0.14216157]
[1750145531227,6.53056095,153.13,153.08,0.28432314]
[1750145531428,5.25951949,153.11,153.08,0.28432314]
[1750145531627,5.25951949,153.11,153.08,6.81680637]
[1750145532034,5.25951949,153.11,153.08,0.28432314]
[1750145532655,6.53056095,153.13,153.08,0.28432314]
[1750145532863,5.25951949,153.1,153.08,0.28432314]
[1750145533146,5.25951949,153.1,153.08,6.8167442]
[1750145533450,53.72,153.15,153.08,6.8167442]
[1750145533451,13.26451949,153.2,153.11,0.28432314]
[1750145533629,5.25951949,153.17,153.14,0.28432314]
[1750145534951,66.66753672,153.2,153.14,0.28432314]
[1750145535155,5.25951949,153.17,153.14,0.28432314]
[1750145535384,6.44,153.2,153.15,23.90916835]
[1750145535541,5.25951949,153.19,153.15,18.64964886]
[1750145536055,12.96750601,153.2,153.15,18.64964886]
[1750145536230,5.25951949,153.19,153.16,0.28432314]
[1750145536934,5.25951949,153.19,153.16,6.81340058]
[1750145537238,5.25951949,153.19,153.16,0.28432314]
[1750145537539,5.25951949,153.19,153.16,6.81344168]
[1750145538145,5.25951949,153.19,153.16,0.28432314]
[1750145538950,5.25951949,153.18,153.16,0.28432314]
[1750145539133,5.25951949,153.19,153.16,0.28432314]
[1750145539537,12.96745152,153.2,153.16,0.28432314]
[1750145539769,5.25951949,153.19,153.16,0.28432314]
[1750145540458,5.25951949,153.19,153.16,6.81332069]
[1750145542363,6.44,153.2,153.16,6.81332069]
[1750145542545,5.25951949,153.19,153.16,6.81332069]
[1750145544272,11.69951949,153.2,153.17,6.52860095]
[1750145545071,26.0,153.23,153.18,0.14216157]
[1750145545268,5.25951949,153.21,153.18,18.933972]
[1750145545479,5.25951949,153.2,153.18,18.933972]
[1750145546075,5.25951949,153.21,153.18,18.933972]
[1750145546276,5.25951949,153.21,153.18,25.46196113]
[1750145547395,27.6,153.24,153.18,30.72148062]
[1750145547559,12.86532117,153.25,153.18,30.72148062]
[1750145547870,5.25951949,153.24,153.21,0.28432314]
[1750145548378,6.34,153.25,153.23,18.933972]
[1750145549252,6.52273172,153.31,153.25,18.933972]
[1750145549440,5.25951949,153.29,153.25,18.933972]
[1750145549763,34.08273172,153.31,153.25,18.933972]
[1750145549949,32.34,153.32,153.25,24.19349149]
[1750145550138,12.86234034,153.32,153.25,24.19349149]
[1750145550335,5.25951949,153.29,153.25,24.19349149]
[1750145550540,5.25951949,153.29,153.26,6.52485971]
[1750145550981,5.25951949,153.27,153.22,47.57592726]
[1750145551145,38.74137294,153.32,153.23,18.933972]
[1750145551348,5.25951949,153.24,153.2,5.54384263]
[1750145551572,5.25951949,153.24,153.22,0.28432314]
[1750145552148,27.58,153.28,153.23,5.25951949]
[1750145552387,32.83951949,153.28,153.24,18.933972]
[1750145552547,5.25951949,153.29,153.25,6.52528548]
[1750145553270,5.25951949,153.3,153.26,18.933972]
[1750145553482,5.25951949,153.29,153.26,18.933972]
[1750145553844,33.9,153.32,153.26,18.933972]
[1750145554043,5.25951949,153.3,153.26,18.933972]
[1750145554553,5.25951949,153.29,153.27,6.524434]
[1750145556447,5.25951949,153.29,153.26,25.45873636]
[1750145557469,5.25951949,153.27,153.23,26.0]
[1750145557660,6.52369047,153.29,153.23,18.64964886]
[1750145557661,5.25951949,153.25,153.23,18.64964886]
[1750145557860,6.52369047,153.29,153.23,18.64964886]
[1750145558062,5.25951949,153.28,153.24,0.28432314]
[1750145558275,6.52328426,153.3,153.24,0.28432314]
[1750145558481,5.25951949,153.27,153.24,6.80966384]
[1750145558671,5.25951949,153.26,153.24,6.80966384]
[1750145559754,5.25951949,153.27,153.24,6.80966384]
[1750145560290,6.52359824,153.29,153.23,0.28432314]
[1750145560291,5.25951949,153.25,153.23,0.28432314]
[1750145560585,5.25951949,153.25,153.22,25.1760395]
[1750145561786,5.25951949,153.28,153.22,18.933972]
[1750145561968,5.25951949,153.24,153.22,18.933972]
[1750145562976,16.30789302,153.3,153.22,6.81053935]
[1750145563178,33.68,153.29,153.22,6.81053935]
[1750145563358,5.25951949,153.25,153.22,6.81053935]
[1750145564765,5.25951949,153.24,153.22,0.28432314]
[1750145565783,6.52449634,153.27,153.22,6.81086639]
[1750145565989,5.25951949,153.24,153.22,6.81086639]
[1750145566683,5.25951949,153.25,153.22,6.81086639]
[1750145566988,5.25951949,153.26,153.22,6.81086639]
[1750145567289,6.52417778,153.28,153.22,12.07038588]
[1750145567476,5.25951949,153.26,153.22,12.07038588]
[1750145567785,5.25951949,153.26,153.22,6.81086639]
[1750145567975,5.25951949,153.25,153.22,6.81086639]
[1750145568372,6.52451118,153.27,153.22,6.81086639]
[1750145568585,5.25951949,153.25,153.22,6.81086639]
[1750145570382,6.52415455,153.28,153.22,6.81086639]
[1750145570590,5.25951949,153.25,153.22,6.81086639]
[1750145572689,5.25951949,153.26,153.22,6.81086639]
[1750145573275,5.25951949,153.25,153.22,6.81086639]
[1750145575080,5.25951949,153.24,153.21,6.52680711]
[1750145575279,5.25951949,153.23,153.21,6.52680711]
[1750145575780,5.25951949,153.24,153.21,6.52680711]
[1750145577508,6.52532424,153.25,153.2,6.66949663]
[1750145577798,5.25951949,153.23,153.2,6.66949663]
[1750145578685,5.25951949,153.24,153.2,6.66949663]
[1750145578882,26.0,153.28,153.23,0.14216157]
[1750145579198,5.25951949,153.26,153.23,0.14216157]
[1750145579383,5.25951949,153.25,153.22,0.14216157]
[1750145579789,5.25951949,153.24,153.22,0.14216157]
[1750145580184,5.25951949,153.28,153.22,0.14216157]
[1750145580390,5.25951949,153.24,153.22,6.66841727]
[1750145580605,5.25951949,153.25,153.22,6.66841727]
[1750145580806,5.25951949,153.25,153.23,0.14216157]
[1750145582306,6.2,153.29,153.24,0.14216157]
[1750145582603,11.45951949,153.29,153.26,6.52485971]
[1750145582807,13.19660163,153.33,153.27,5.54384263]
[1750145583012,13.19660163,153.33,153.28,5.25951949]
[1750145583013,5.25951949,153.32,153.28,5.25951949]
[1750145583303,5.25951949,153.33,153.27,0.28432314]
[1750145583511,5.25951949,153.32,153.28,5.25951949]
[1750145583686,5.25951949,153.32,153.29,0.28432314]
[1750145584380,6.2,153.34,153.3,6.5231572]
[1750145584589,5.25951949,153.33,153.3,6.5231572]
[1750145585003,6.2,153.34,153.3,6.5231572]
[1750145585209,5.25951949,153.33,153.3,6.5231572]
[1750145586903,12.72153043,153.34,153.29,6.80778622]
[1750145587210,5.25951949,153.32,153.29,6.80778622]
[1750145587788,5.25951949,153.3,153.28,6.5239051]
[1750145588010,5.25951949,153.29,153.27,0.28432314]
[1750145588306,5.25951949,153.29,153.27,0.14216157]
[1750145588488,5.25951949,153.28,153.25,25.31709591]
[1750145588800,5.25951949,153.28,153.25,25.17493434]
[1750145589191,5.25951949,153.28,153.26,0.28432314]
[1750145589713,5.25951949,153.28,153.26,0.14216157]
[1750145590010,5.25951949,153.28,153.26,6.66680718]
[1750145590590,4.86829853,153.33,153.27,18.79181043]
[1750145590783,5.25951949,153.33,153.28,0.14216157]
[1750145590982,5.25951949,153.33,153.29,0.14216157]
[1750145591684,5.25951949,153.33,153.3,0.14216157]
[1750145591891,5.25951949,153.33,153.29,5.40168106]
[1750145591892,5.25951949,153.33,153.31,6.52273172]
[1750145592312,6.2,153.34,153.31,6.52273172]
[1750145592522,5.25951949,153.33,153.31,6.52273172]
[1750145592879,5.25951949,153.33,153.3,6.5231572]
[1750145593792,5.25951949,153.32,153.3,6.5231572]
[1750145594711,5.25951949,153.33,153.3,6.5231572]
[1750145595214,5.25951949,153.32,153.3,6.5231572]
[1750145596908,5.25951949,153.33,153.3,6.5231572]
[1750145597291,11.45951949,153.34,153.31,0.28432314]
[1750145597487,4.86704478,153.36,153.31,0.28432314]
[1750145597716,5.25951949,153.34,153.31,0.28432314]
[1750145598719,5.25951949,153.34,153.32,6.52230628]
[1750145600330,5.25951949,153.33,153.31,6.52257373]
[1750145602339,5.25951949,153.34,153.31,6.52257373]
[1750145604635,11.38679832,153.37,153.31,6.52257373]
[1750145604814,5.25951949,153.34,153.31,6.52257373]
[1750145605015,11.38679832,153.37,153.31,6.52257373]
[1750145605217,5.25951949,153.34,153.31,6.52257373]
[1750145606040,6.52022129,153.37,153.31,6.52257373]
[1750145606215,5.25951949,153.33,153.31,6.52257373]
[1750145607643,5.25951949,153.34,153.31,6.52257373]
[1750145608941,11.38193959,153.37,153.31,6.52257373]
[1750145609120,5.25951949,153.34,153.31,6.52257373]
[1750145609630,5.25951949,153.34,153.32,0.28432314]
[1750145609940,5.25951949,153.37,153.32,24.19349149]
[1750145610238,5.25951949,153.36,153.32,24.19349149]
[1750145611241,5.25951949,153.36,153.33,6.52188091]
[1750145611443,12.61965527,153.39,153.33,6.52188091]
[1750145611751,5.25951949,153.34,153.3,6.4864]
[1750145611922,5.25951949,153.31,153.28,0.14216157]
[1750145612121,5.25951949,153.31,153.28,0.28432314]
[1750145612346,5.25951949,153.31,153.28,0.14216157]
[1750145612548,27.16,153.35,153.3,0.14216157]
[1750145612751,5.25951949,153.33,153.3,0.28432314]
[1750145612934,5.25951949,153.33,153.3,6.80709756]
[1750145613521,32.41951949,153.35,153.32,0.28432314]
[1750145613746,5.25951949,153.35,153.32,0.28432314]
[1750145615345,5.25951949,153.34,153.32,0.28432314]
[1750145616426,5.25951949,153.33,153.3,18.933972]
[1750145616629,5.25951949,153.31,153.28,6.52383481]
[1750145616837,5.25951949,153.3,153.29,0.28432314]
[1750145617425,5.25951949,153.3,153.27,18.64964886]
[1750145617642,5.25951949,153.28,153.24,18.64964886]
[1750145617854,5.25951949,153.25,153.18,7.6657]
[1750145618031,5.25951949,153.24,153.2,5.25951949]
[1750145618359,5.25951949,153.24,153.21,26.0]
[1750145618524,5.25951949,153.23,153.21,26.0]
[1750145618719,5.25951949,153.23,153.22,0.28432314]
[1750145618924,5.25951949,153.23,153.21,26.0]
[1750145619427,5.25951949,153.23,153.22,6.81088625]